fUSD/lending_fUSD_20250503
["ID","MTS","AMOUNT","RATE_DAILY","PERIOD"]
[359689710,1746255045663,-2437.77,0.00019797,2]
[359689711,1746255045673,-450.0,0.00019797,2]
[359689712,1746255045683,-461.16882008,0.00019797,2]
[359689713,1746255045694,-623.18,0.00019797,2]
[359689715,1746255045704,-450.0,0.00019797,2]
[359689717,1746255045714,-450.0,0.00019797,2]
[359689719,1746255045724,-450.0,0.00019797,2]
[359689721,1746255045734,-450.0,0.00019797,2]
[359689723,1746255045744,-450.0,0.00019797,2]
[359689725,1746255045753,-461.35,0.00019797,2]
[359689726,1746255045764,-450.0,0.00019797,2]
[359689727,1746255045774,-450.0,0.00019797,2]
[359689728,1746255045783,-450.0,0.00019797,2]
[359689729,1746255045792,-1002.95,0.00019797,2]
[359689730,1746255045802,-450.0,0.00019797,2]
[359689731,1746255045811,-450.0,0.00019797,2]
[359689732,1746255045821,-412.52998212,0.00019797,2]
[359689733,1746255045830,-450.0,0.00019797,2]
[359689734,1746255045840,-365.0454029,0.00019797,2]
[359689735,1746255045849,-450.0,0.00019797,2]
[359689736,1746255045858,-1038.06,0.00019797,2]
[359689737,1746255045868,-450.0,0.00019797,2]
[359689738,1746255045877,-453.41,0.00019797,2]
[359689739,1746255045887,-514.34,0.00019797,2]
[359689740,1746255045896,-805.9,0.00019797,2]
[359689741,1746255045905,-450.0,0.00019797,2]
[359689742,1746255045915,-450.0,0.00019797,2]
[359689743,1746255045924,-450.0,0.00019797,2]
[359689744,1746255045934,-562.11,0.00019797,2]
[359689745,1746255045946,-1214.75,0.00019797,2]
[359689746,1746255045962,-171.7368711,0.00019797,2]
[359689747,1746255045980,-469.05,0.00019797,2]
[359689748,1746255045994,-450.0,0.00019797,2]
[359689749,1746255046004,-537.2,0.00019797,2]
[359689750,1746255046013,-450.0,0.00019797,2]
[359689751,1746255046022,-1395.49,0.00019797,2]
[359689752,1746255046031,-450.0,0.00019797,2]
[359689753,1746255046041,-356.92621628,0.00019797,2]
[359689754,1746255046050,-450.0,0.00019797,2]
[359689755,1746255046059,-602.9,0.00019797,2]
[359689756,1746255046068,-827.6,0.00019797,2]
[359689757,1746255046077,-497.69,0.00019797,2]
[359689758,1746255046087,-450.0,0.00019797,2]
[359689759,1746255046096,-450.0,0.00019797,2]
[359689760,1746255046105,-450.0,0.00019797,2]
[359689761,1746255046115,-450.0,0.00019797,2]
[359689762,1746255046124,-450.0,0.00019797,2]
[359689763,1746255046133,-671.73,0.00019797,2]
[359689764,1746255046143,-328.83609897,0.00019797,2]
[359689765,1746255046152,-637.68,0.00019797,2]
[359689766,1746255046161,-2100.71,0.00019797,2]
[359689767,1746255046170,-521.41,0.00019797,2]
[359689768,1746255046180,-920.66,0.00019797,2]
[359689769,1746255046192,-1895.06,0.00019797,2]
[359689770,1746255046201,-269.1165694,0.00019799,2]
[359689771,1746255046211,-1189.77949539,0.00019809,2]
[359689772,1746255046220,-2121.14074752,0.0001981,2]
[359689773,1746255046230,-150.0,0.00019811,2]
[359689774,1746255046241,-1189.77949539,0.00019832,2]
[359689775,1746255046252,-2121.14074752,0.00019832,2]
[359689776,1746255046262,-150.0,0.00019836,2]
[359689777,1746255046272,-2000.0,0.0001984,2]
[359689778,1746255046282,-200.0,0.0001984,2]
[359689779,1746255046291,-450.0,0.00019841,2]
[359689781,1746255046300,-1189.77949539,0.00019855,2]
[359689783,1746255046309,-2121.14074752,0.00019855,2]
[359689785,1746255046319,-500.0,0.00019856,2]
[359689787,1746255046329,-500.0,0.00019856,2]
[359689789,1746255046338,-500.0,0.00019856,2]
[359689791,1746255046351,-500.0,0.00019856,2]
[359689793,1746255046360,-443.62,0.00019856,2]
[359689795,1746255046370,-12500.0,0.00019856,2]
[359689796,1746255046379,-150.0,0.0001986,2]
[359689797,1746255046389,-12500.0,0.00019865,2]
[359689798,1746255046398,-150.0,0.00019866,2]
[359689799,1746255046407,-12500.0,0.00019874,2]
[359689800,1746255046417,-1189.77949539,0.00019877,2]
[359689801,1746255046426,-2121.14074752,0.00019877,2]
[359689802,1746255046436,-12500.0,0.00019882,2]
[359689803,1746255046445,-150.0,0.00019884,2]
[359689804,1746255046455,-330.48091671,0.00019886,2]
[359689805,1746255046465,-150.0,0.00019887,2]
[359689806,1746255046474,-4093.995,0.00019888,2]
[359689807,1746255046483,-323.067,0.00019888,2]
[359689808,1746255046493,-330.48091671,0.00019888,2]
[359689809,1746255046502,-12500.0,0.00019891,2]
[359689810,1746255046511,-150.0,0.00019898,2]
[359689811,1746255046520,-150.0,0.00019899,2]
[359689812,1746255046529,-12500.0,0.000199,2]
[359689813,1746255046538,-2121.14074752,0.000199,2]
[359689814,1746255046547,-2780.94450003,0.000199,2]
[359689815,1746255046556,-664.8439768,0.000199,2]
[359689816,1746255046565,-1189.77949539,0.000199,2]
[359689817,1746255046574,-12500.0,0.000199,2]
[359689818,1746255046583,-7620.7860353,0.000199,2]
[359689819,1746255046592,-200.79647078,0.000199,2]
[359689820,1746255046602,-422.90548346,0.000199,2]
[359689821,1746255046611,-224.40440705,0.00019907,2]
[359689822,1746255046621,-150.0,0.00019922,2]
[359689823,1746255046630,-150.0,0.00019944,2]
[359689824,1746255046640,-287.0,0.00019945,2]
[359689825,1746255046649,-150.0,0.00019946,2]
[359689826,1746255046659,-150.0,0.00019949,2]
[359689827,1746255046668,-22458.74643072,0.00019966,2]
[359689828,1746255046679,-24428.0,0.00019973,2]
[359689829,1746255046688,-162.45076163,0.00019973,2]
[359689830,1746255046698,-544.89074326,0.00019973,2]
[359689831,1746255046707,-500.0,0.00019973,2]
[359689832,1746255046717,-500.0,0.00019973,2]
[359689833,1746255046726,-160.45164529,0.00019973,2]
[359689834,1746255046735,-501.21994559,0.00019973,2]
[359689835,1746255046745,-502.58925245,0.00019973,2]
[359689836,1746255046754,-500.0,0.00019973,2]
[359689837,1746255046763,-505.26039964,0.00019973,2]
[359689838,1746255046773,-532.23391832,0.00019973,2]
[359689839,1746255046783,-500.0,0.00019973,2]
[359689840,1746255046794,-152.63342926,0.00019973,2]
[359689841,1746255046804,-500.8951883,0.00019973,2]
[359689842,1746255046813,-500.0,0.00019973,2]
[359689843,1746255046822,-500.0,0.00019973,2]
[359689844,1746255046832,-517.26161729,0.00019973,2]
[359689845,1746255046841,-303.17184781,0.00019973,2]
[359689846,1746255046851,-500.0,0.00019973,2]
[359689847,1746255046860,-160.20238278,0.00019973,2]
[359689848,1746255046869,-500.0,0.00019973,2]
[359689849,1746255046879,-500.0,0.00019973,2]
[359689850,1746255046889,-243.83231524,0.00019973,2]
[359689851,1746255046899,-500.0,0.00019973,2]
[359689852,1746255046909,-501.15741321,0.00019973,2]
[359689853,1746255046919,-959.0,0.00019973,2]
[359689854,1746255046929,-500.0,0.00019973,2]
[359689855,1746255046938,-539.24803438,0.00019973,2]
[359689856,1746255046948,-502.06385384,0.00019973,2]
[359689857,1746255046958,-294.73382095,0.00019973,2]
[359689858,1746255046967,-500.0,0.00019985,2]
[359689859,1746255046976,-6224.7029521,0.00019986,2]
[359689860,1746255046986,-242012.0031083,0.00019986,2]
[359689861,1746255046995,-18337.3556465,0.00019986,2]
[359689862,1746255047005,-1233.29204468,0.0001999,2]
[359689863,1746255047014,-1233.29204468,0.0001999,2]
[359689864,1746255047023,-1233.29204468,0.0001999,2]
[359689865,1746255047032,-520.66241871,0.00019991,2]
[359689866,1746255047041,-95688.64921304,0.00019992,2]
[359689867,1746255047051,-500.0,0.00019999,2]
[359689868,1746255047060,-679.71892541,0.00019999,2]
[359689869,1746255047070,-500.0,0.00019999,2]
[359689870,1746255047080,-281.47230038,0.00019999,2]
[359689871,1746255047090,-300.0,0.00019999,2]
[359689872,1746255047100,-300.0,0.00019999,2]
[359689873,1746255047110,-1001.1282,0.00019999,2]
[359689874,1746255047119,-3975.69203346,0.00019999,2]
[359689875,1746255047129,-2128.0,0.00019999,2]
[359689876,1746255047138,-271.4745152,0.0002,2]
[359689877,1746255047148,-609383.97534492,0.0002,2]
[359689878,1746255047158,-2971098.09874191,0.0002,2]
[359689879,1746255047794,-450.0,0.00019795,2]
[359689880,1746255047803,-450.0,0.00019796,2]
[359689881,1746255047812,-112.97035628,0.00019891,2]
[359689882,1746255047837,-279.89037868,0.00019796,2]
[359689883,1746255048066,-450.0,0.00019795,2]
[359689884,1746255048076,-170.10962132,0.00019796,2]
[359689885,1746255048086,-217.51056043,0.00019891,2]
[359689886,1746255048095,-1433.47081985,0.0002,2]
[359689887,1746255048121,-59737.56405422,0.0002,2]
[359689888,1746255048132,-493.092,0.0002,2]
[359689889,1746255048143,-528.1,0.0002,2]
[359689890,1746255048153,-535.648,0.0002,2]
[359689891,1746255066361,1000.0,0.00019088,2]
[359689892,1746255078885,1080.39323802,0.00018,2]
[359689893,1746255223637,223.53,0.00030137,120]
[359689894,1746255544432,196.0,0.000328,120]
[359689895,1746255550122,175.0,0.00019,2]
[359689896,1746255717292,286.89,0.00016902,2]
[359689897,1746255717489,286.89,0.00019166,2]
[359689898,1746255753549,13725.23,0.0001882,2]
[359689899,1746255784813,810.39,0.00019741,5]
[359689900,1746255832646,250.0,0.00018811,7]
[359690702,1746256043919,250.0,0.00017,2]
[359690746,1746256044889,300.0,0.00019,2]
[359690973,1746256074799,1000.0,0.00018761,2]
[359691003,1746256231942,-250.0,0.00019694,2]
[359691005,1746256231951,-159.40114631,0.00019695,2]
[359691007,1746256231961,-151.0,0.00019696,2]
[359691009,1746256231972,-159.40114631,0.00019729,2]
[359691011,1746256231981,-207.4,0.0001973,2]
[359691013,1746256231990,-150.0,0.0001973,2]
[359691015,1746256232000,-300.0,0.00019738,2]
[359691017,1746256232009,-1200.0,0.00019738,2]
[359691019,1746256232019,-706.1829615,0.00019739,2]
[359691021,1746256232030,-297.34593957,0.00019739,2]
[359691023,1746256232039,-500.0,0.00019739,2]
[359691025,1746256232049,-500.0,0.00019739,2]
[359691027,1746256232058,-500.0,0.00019739,2]
[359691029,1746256232068,-163.21258531,0.00019739,2]
[359691071,1746256240648,-336.78741469,0.00019739,2]
[359691072,1746256240657,-500.0,0.00019739,2]
[359691073,1746256240667,-500.0,0.00019739,2]
[359691074,1746256240676,-500.0,0.00019739,2]
[359691075,1746256240686,-500.0,0.00019739,2]
[359691076,1746256240695,-500.0,0.00019739,2]
[359691077,1746256240704,-500.0,0.00019739,2]
[359691078,1746256240713,-500.0,0.00019739,2]
[359691079,1746256240723,-500.0,0.00019739,2]
[359691080,1746256240732,-500.0,0.00019739,2]
[359691081,1746256240741,-500.0,0.00019739,2]
[359691082,1746256240750,-381.69727196,0.00019739,2]
[359691083,1746256240760,-500.0,0.00019739,2]
[359691084,1746256240769,-500.0,0.00019739,2]
[359691085,1746256240778,-500.0,0.00019739,2]
[359691086,1746256240789,-500.0,0.00019739,2]
[359691087,1746256240799,-500.0,0.00019739,2]
[359691088,1746256240808,-500.0,0.00019739,2]
[359691089,1746256240819,-500.0,0.00019739,2]
[359691090,1746256240828,-500.0,0.00019739,2]
[359691091,1746256240838,-500.0,0.00019739,2]
[359691092,1746256240847,-500.0,0.00019739,2]
[359691093,1746256240856,-500.0,0.00019739,2]
[359691094,1746256240865,-500.0,0.00019739,2]
[359691095,1746256240875,-500.0,0.00019739,2]
[359691096,1746256240884,-500.0,0.00019739,2]
[359691097,1746256240894,-500.0,0.00019739,2]
[359691098,1746256240903,-500.0,0.00019739,2]
[359691099,1746256240912,-500.0,0.00019739,2]
[359691100,1746256240921,-500.0,0.00019739,2]
[359691101,1746256240931,-500.0,0.00019739,2]
[359691102,1746256240940,-500.0,0.00019739,2]
[359691103,1746256240949,-500.0,0.00019739,2]
[359691104,1746256240958,-500.0,0.00019739,2]
[359691105,1746256240967,-500.0,0.00019739,2]
[359691106,1746256240976,-500.0,0.00019739,2]
[359691107,1746256240986,-500.0,0.00019739,2]
[359691108,1746256240995,-488.16972719,0.00019739,2]
[359691109,1746256241004,-500.0,0.00019739,2]
[359691110,1746256241014,-500.0,0.00019739,2]
[359691111,1746256241024,-500.0,0.00019739,2]
[359691112,1746256241034,-500.0,0.00019739,2]
[359691113,1746256241043,-500.0,0.00019739,2]
[359691114,1746256241053,-500.0,0.00019739,2]
[359691115,1746256241062,-500.0,0.00019739,2]
[359691116,1746256241072,-500.0,0.00019739,2]
[359691117,1746256241081,-500.0,0.00019739,2]
[359691118,1746256241090,-500.0,0.00019739,2]
[359691119,1746256241100,-500.0,0.00019739,2]
[359691120,1746256241109,-500.0,0.00019739,2]
[359691121,1746256241121,-500.0,0.00019739,2]
[359691122,1746256241130,-500.0,0.00019739,2]
[359691123,1746256241139,-500.0,0.00019739,2]
[359691124,1746256241149,-500.0,0.00019739,2]
[359691125,1746256241158,-500.0,0.00019739,2]
[359691126,1746256241168,-500.0,0.00019739,2]
[359691127,1746256241177,-500.0,0.00019739,2]
[359691128,1746256241186,-500.0,0.00019739,2]
[359691129,1746256241196,-500.0,0.00019739,2]
[359691130,1746256241206,-500.0,0.00019739,2]
[359691131,1746256241215,-300.00000001,0.00019739,2]
[359691132,1746256241224,-499.99,0.0001974,2]
[359691133,1746256241234,-999.99,0.0001974,2]
[359691134,1746256241243,-6441.04,0.0001974,2]
[359691135,1746256241252,-150.0,0.0001974,2]
[359691136,1746256241262,-531.09,0.0001974,2]
[359691137,1746256241271,-60251.79999307,0.00019741,2]
[359691138,1746256241280,-150.99,0.00019741,2]
[359691139,1746256241289,-9999.99,0.00019741,2]
[359691140,1746256241299,-150.99,0.00019741,2]
[359691141,1746256241308,-9999.99,0.00019741,2]
[359691142,1746256241317,-1538.66,0.00019741,2]
[359691143,1746256241327,-4007.67,0.00019741,2]
[359691144,1746256241336,-150.0,0.00019746,2]
[359691145,1746256241345,-500.0,0.00019747,2]
[359691146,1746256241355,-228.28560537,0.00019747,2]
[359691147,1746256241365,-500.0,0.00019747,2]
[359691148,1746256241374,-150.0,0.00019747,2]
[359691149,1746256241383,-150.0,0.00019747,2]
[359691150,1746256241393,-150.0,0.00019747,2]
[359691151,1746256241402,-500.0,0.00019747,2]
[359691152,1746256241411,-500.0,0.00019747,2]
[359691153,1746256241420,-150.0,0.00019747,2]
[359691154,1746256241430,-150.0,0.00019747,2]
[359691155,1746256241440,-150.0,0.00019748,2]
[359691156,1746256241449,-150.0,0.00019763,2]
[359691157,1746256241459,-159.40114631,0.00019763,2]
[359691158,1746256241468,-150.0,0.00019764,2]
[359691159,1746256241478,-150.0,0.00019766,2]
[359691160,1746256241488,-150.0,0.00019768,2]
[359691161,1746256241497,-500.0,0.00019773,2]
[359691162,1746256241507,-500.0,0.00019773,2]
[359691163,1746256241516,-500.0,0.00019773,2]
[359691164,1746256241526,-500.0,0.00019773,2]
[359691165,1746256241536,-500.0,0.00019773,2]
[359691166,1746256241545,-503.83950627,0.00019773,2]
[359691167,1746256241554,-500.0,0.00019773,2]
[359691168,1746256241564,-502.75955029,0.00019773,2]
[359691169,1746256241573,-500.0,0.00019773,2]
[359691170,1746256241582,-150.0,0.00019775,2]
[359691171,1746256241592,-150.0,0.0001978,2]
[359691172,1746256241601,-151.0,0.00019783,2]
[359691173,1746256241611,-668.65185757,0.00019783,2]
[359691174,1746256241620,-150.0,0.00019784,2]
[359691175,1746256241629,-500.0,0.00019793,2]
[359691176,1746256241639,-500.0,0.00019793,2]
[359691177,1746256241648,-500.0,0.00019793,2]
[359691178,1746256241658,-500.0,0.00019793,2]
[359691179,1746256241667,-639.45247974,0.00019793,2]
[359691180,1746256241677,-500.0,0.00019793,2]
[359691181,1746256241686,-500.0,0.00019793,2]
[359691182,1746256241697,-385.82489784,0.00019793,2]
[359691183,1746256241707,-450.0,0.00019793,2]
[359691184,1746256241716,-450.0,0.00019793,2]
[359691185,1746256241726,-450.0,0.00019793,2]
[359691186,1746256241735,-450.0,0.00019793,2]
[359691187,1746256241745,-450.0,0.00019793,2]
[359691188,1746256241754,-450.0,0.00019793,2]
[359691189,1746256241763,-450.0,0.00019793,2]
[359691190,1746256241772,-450.0,0.00019794,2]
[359691191,1746256241781,-450.0,0.00019794,2]
[359691192,1746256241791,-450.0,0.00019794,2]
[359691193,1746256241800,-469.64,0.00019794,2]
[359691194,1746256241809,-450.0,0.00019794,2]
[359691195,1746256241818,-450.0,0.00019794,2]
[359691196,1746256241827,-450.0,0.00019794,2]
[359691197,1746256241836,-450.0,0.00019794,2]
[359691198,1746256241845,-150.0,0.00019794,2]
[359691199,1746256241854,-500.0,0.00019794,2]
[359691200,1746256241863,-450.0,0.00019794,2]
[359691201,1746256241873,-500.0,0.00019794,2]
[359691202,1746256241882,-450.0,0.00019794,2]
[359691203,1746256241891,-150.0,0.00019794,2]
[359691204,1746256241900,-450.0,0.00019794,2]
[359691205,1746256241909,-500.0,0.00019794,2]
[359691206,1746256241918,-150.0,0.00019794,2]
[359691207,1746256241927,-500.0,0.00019794,2]
[359691208,1746256241936,-450.0,0.00019794,2]
[359691209,1746256241946,-450.0,0.00019794,2]
[359691210,1746256241956,-450.0,0.00019794,2]
[359691211,1746256241965,-450.0,0.00019794,2]
[359691212,1746256241975,-450.0,0.00019794,2]
[359691213,1746256241984,-749.74,0.00019794,2]
[359691214,1746256241993,-450.0,0.00019794,2]
[359691215,1746256242003,-450.0,0.00019794,2]
[359691216,1746256242012,-166.40529192,0.00019794,2]
[359691217,1746256242022,-450.0,0.00019794,2]
[359691218,1746256242031,-215.24568991,0.00019794,2]
[359691219,1746256242041,-450.0,0.00019794,2]
[359691220,1746256242051,-450.0,0.00019794,2]
[359691221,1746256242060,-450.0,0.00019794,2]
[359691222,1746256242070,-500.0,0.00019794,2]
[359691223,1746256242079,-575.8,0.00019794,2]
[359691224,1746256242089,-450.0,0.00019794,2]
[359691225,1746256242098,-450.0,0.00019794,2]
[359691226,1746256242108,-452.43,0.00019794,2]
[359691227,1746256242119,-450.0,0.00019794,2]
[359691228,1746256242129,-450.0,0.00019794,2]
[359691229,1746256242138,-450.0,0.00019794,2]
[359691230,1746256242148,-450.0,0.00019794,2]
[359691231,1746256242157,-450.0,0.00019794,2]
[359691232,1746256242168,-450.0,0.00019794,2]
[359691233,1746256242177,-450.0,0.00019794,2]
[359691234,1746256242186,-450.0,0.00019794,2]
[359691235,1746256242196,-450.0,0.00019794,2]
[359691236,1746256242206,-450.0,0.00019794,2]
[359691237,1746256242216,-450.0,0.00019794,2]
[359691238,1746256242225,-450.0,0.00019794,2]
[359691239,1746256242235,-496.91925382,0.00019794,2]
[359691240,1746256242245,-450.0,0.00019794,2]
[359691241,1746256242254,-450.0,0.00019794,2]
[359691242,1746256242263,-450.0,0.00019794,2]
[359691243,1746256242273,-450.0,0.00019794,2]
[359691244,1746256242284,-450.0,0.00019794,2]
[359691245,1746256242294,-450.0,0.00019794,2]
[359691246,1746256242303,-450.0,0.00019794,2]
[359691247,1746256242313,-450.0,0.00019794,2]
[359691248,1746256242323,-450.0,0.00019794,2]
[359691249,1746256242332,-512.04018184,0.00019794,2]
[359691250,1746256242341,-450.0,0.00019794,2]
[359691251,1746256242351,-450.0,0.00019794,2]
[359691252,1746256242360,-450.0,0.00019794,2]
[359691253,1746256242370,-450.0,0.00019794,2]
[359691254,1746256242379,-484.64719375,0.00019794,2]
[359691255,1746256242389,-504.41,0.00019794,2]
[359691256,1746256242399,-450.0,0.00019794,2]
[359691257,1746256242408,-450.0,0.00019794,2]
[359691258,1746256242418,-656.37,0.00019794,2]
[359691259,1746256242428,-450.0,0.00019794,2]
[359691260,1746256242437,-945.3,0.00019794,2]
[359691261,1746256242448,-450.0,0.00019794,2]
[359691262,1746256242457,-450.0,0.00019794,2]
[359691263,1746256242469,-489.62464043,0.00019794,2]
[359691264,1746256242479,-465.67882228,0.00019794,2]
[359691265,1746256242490,-450.0,0.00019794,2]
[359691266,1746256242500,-472.57200641,0.00019794,2]
[359691267,1746256242513,-450.0,0.00019794,2]
[359691268,1746256242523,-450.0,0.00019794,2]
[359691269,1746256242533,-450.0,0.00019794,2]
[359691270,1746256242543,-450.0,0.00019794,2]
[359691271,1746256242553,-450.0,0.00019794,2]
[359691272,1746256242564,-450.0,0.00019794,2]
[359691273,1746256242574,-450.0,0.00019794,2]
[359691274,1746256242584,-450.0,0.00019794,2]
[359691275,1746256242594,-450.0,0.00019794,2]
[359691276,1746256242605,-450.0,0.00019794,2]
[359691277,1746256242615,-450.0,0.00019794,2]
[359691278,1746256242625,-640.14,0.00019794,2]
[359691279,1746256242635,-450.0,0.00019794,2]
[359691280,1746256242645,-450.0,0.00019794,2]
[359691281,1746256242655,-471.74365121,0.00019794,2]
[359691282,1746256242665,-450.0,0.00019794,2]
[359691283,1746256242676,-450.0,0.00019794,2]
[359691284,1746256242686,-452.09,0.00019794,2]
[359691285,1746256242696,-454.21,0.00019794,2]
[359691286,1746256242706,-450.0,0.00019794,2]
[359691288,1746256242717,-456.57942005,0.00019794,2]
[359691289,1746256242727,-450.0,0.00019794,2]
[359691290,1746256242737,-567.51,0.00019794,2]
[359691291,1746256242747,-450.0,0.00019794,2]
[359691292,1746256242756,-450.0,0.00019794,2]
[359691293,1746256242766,-450.0,0.00019794,2]
[359691294,1746256242776,-450.0,0.00019794,2]
[359691295,1746256242786,-450.0,0.00019794,2]
[359691296,1746256242796,-717.49,0.00019794,2]
[359691297,1746256242806,-450.0,0.00019794,2]
[359691298,1746256242816,-450.0,0.00019794,2]
[359691299,1746256242826,-2090.94,0.00019794,2]
[359691300,1746256242836,-573.59694529,0.00019794,2]
[359691301,1746256242845,-450.0,0.00019794,2]
[359691303,1746256242855,-450.0,0.00019794,2]
[359691305,1746256242865,-450.0,0.00019794,2]
[359691307,1746256242875,-450.0,0.00019794,2]
[359691309,1746256242885,-450.0,0.00019794,2]
[359691310,1746256242894,-90764.46,0.00019794,2]
[359691311,1746256242903,-457.66,0.00019794,2]
[359691312,1746256242913,-450.0,0.00019794,2]
[359691313,1746256242922,-450.0,0.00019794,2]
[359691314,1746256242932,-519.95,0.00019794,2]
[359691317,1746256242941,-450.0,0.00019794,2]
[359691318,1746256242951,-1205.8,0.00019794,2]
[359691319,1746256242961,-999.0,0.00019794,2]
[359691320,1746256242971,-450.0,0.00019794,2]
[359691321,1746256242981,-600.09,0.00019794,2]
[359691322,1746256242991,-476.74,0.00019794,2]
[359691323,1746256243000,-450.0,0.00019794,2]
[359691324,1746256243011,-450.0,0.00019794,2]
[359691325,1746256243020,-450.0,0.00019794,2]
[359691326,1746256243030,-465.53,0.00019794,2]
[359691327,1746256243039,-450.0,0.00019794,2]
[359691328,1746256243049,-450.0,0.00019794,2]
[359691329,1746256243058,-450.0,0.00019794,2]
[359691330,1746256243069,-450.0,0.00019794,2]
[359691331,1746256243079,-1675.46,0.00019794,2]
[359691332,1746256243089,-450.0,0.00019794,2]
[359691333,1746256243098,-450.0,0.00019794,2]
[359691334,1746256243108,-972.9,0.00019794,2]
[359691335,1746256243121,-450.0,0.00019794,2]
[359691336,1746256243131,-450.0,0.00019794,2]
[359691337,1746256243141,-450.0,0.00019794,2]
[359691338,1746256243151,-503.0,0.00019794,2]
[359691339,1746256243161,-450.0,0.00019794,2]
[359691340,1746256243171,-450.0,0.00019794,2]
[359691341,1746256243181,-450.0,0.00019794,2]
[359691342,1746256243190,-450.0,0.00019794,2]
[359691343,1746256243200,-450.0,0.00019794,2]
[359691344,1746256243210,-450.0,0.00019794,2]
[359691345,1746256243219,-450.0,0.00019794,2]
[359691346,1746256243229,-593.19,0.00019794,2]
[359691347,1746256243239,-450.0,0.00019794,2]
[359691348,1746256243248,-450.0,0.00019794,2]
[359691349,1746256243258,-450.0,0.00019794,2]
[359691350,1746256243268,-450.0,0.00019794,2]
[359691351,1746256243278,-717.65,0.00019794,2]
[359691352,1746256243288,-450.0,0.00019794,2]
[359691353,1746256243298,-450.0,0.00019794,2]
[359691354,1746256243307,-450.0,0.00019794,2]
[359691355,1746256243317,-450.0,0.00019794,2]
[359691356,1746256243327,-1068.38,0.00019794,2]
[359691357,1746256243337,-450.0,0.00019794,2]
[359691358,1746256243346,-497.25,0.00019794,2]
[359691359,1746256243356,-519.68909927,0.00019794,2]
[359691360,1746256243366,-450.0,0.00019794,2]
[359691361,1746256243376,-557.18,0.00019794,2]
[359691362,1746256243386,-825.46,0.00019794,2]
[359691363,1746256243396,-1438.42,0.00019794,2]
[359691364,1746256243406,-517.44658911,0.00019794,2]
[359691365,1746256243415,-520.74,0.00019794,2]
[359691366,1746256243425,-450.0,0.00019794,2]
[359691367,1746256243436,-450.0,0.00019794,2]
[359691368,1746256243445,-3116.47,0.00019794,2]
[359691369,1746256243455,-554.41,0.00019794,2]
[359691370,1746256243465,-491.74,0.00019794,2]
[359691371,1746256243474,-450.0,0.00019794,2]
[359691372,1746256243484,-949.95,0.00019794,2]
[359691373,1746256243494,-450.0,0.00019794,2]
[359691374,1746256243504,-450.0,0.00019794,2]
[359691375,1746256243514,-450.0,0.00019794,2]
[359691376,1746256243524,-1206.47,0.00019794,2]
[359691378,1746256243534,-564.63,0.00019794,2]
[359691380,1746256243545,-450.0,0.00019794,2]
[359691382,1746256243555,-482.14,0.00019794,2]
[359691384,1746256243564,-452.45,0.00019794,2]
[359691385,1746256243575,-4239.77,0.00019794,2]
[359691386,1746256243585,-466.83289882,0.00019794,2]
[359691387,1746256243596,-560.56,0.00019794,2]